bitfinex/quotes_BTCUSD_20250726
["timestamp","ask_amount","ask_price","bid_price","bid_amount"]
[1753559431882,0.17736471,118400.0,118390.0,0.02362]
[1753559432115,0.54537086,118400.0,118390.0,0.15142]
[1753559432251,0.67313086,118400.0,118390.0,0.15142]
[1753559432521,0.68843086,118400.0,118390.0,0.1278]
[1753559432764,0.17737969,118390.0,118380.0,0.34002404]
[1753559432999,0.54538584,118390.0,118380.0,0.42462438]
[1753559433227,0.55383228,118390.0,118380.0,0.42675438]
[1753559433384,0.55383228,118390.0,118380.0,0.44325438]
[1753559433778,0.3848991,118390.0,118380.0,0.44325438]
[1753559433980,0.39334533,118390.0,118380.0,0.44325438]
[1753559434217,0.40179198,118390.0,118380.0,0.44325438]
[1753559434843,0.40179198,118390.0,118380.0,0.45170175]
[1753559435288,0.39334533,118390.0,118380.0,0.46014905]
[1753559435512,0.39334533,118390.0,118380.0,0.46114905]
[1753559435733,0.40179198,118390.0,118380.0,0.45270175]
[1753559435949,0.39334533,118390.0,118380.0,0.46114905]
[1753559436164,0.39334533,118390.0,118380.0,0.45270175]
[1753559436406,0.40179198,118390.0,118380.0,0.45270175]
[1753559437057,0.40179198,118390.0,118380.0,0.44425438]
[1753559437283,0.40179198,118390.0,118380.0,0.45270175]
[1753559437512,0.40179191,118390.0,118380.0,0.46114905]
[1753559437774,0.40179191,118390.0,118380.0,0.45270175]
[1753559439302,0.40179191,118390.0,118380.0,0.46114905]
[1753559440749,0.40179191,118390.0,118380.0,0.45270175]
[1753559440977,0.40179191,118390.0,118380.0,0.46114905]
[1753559442037,0.40179191,118390.0,118380.0,0.45270175]
[1753559442417,0.40179191,118390.0,118380.0,0.46114905]
[1753559443733,0.40179191,118390.0,118380.0,0.45270175]
[1753559444031,0.40179191,118390.0,118380.0,0.46114905]
[1753559444620,0.40179191,118390.0,118380.0,0.45270175]
[1753559445247,0.40179191,118390.0,118380.0,0.46114905]
[1753559445452,0.40179191,118390.0,118380.0,0.32494175]
[1753559445658,0.40179191,118390.0,118380.0,0.45270175]
[1753559446307,0.40179191,118390.0,118380.0,0.46114905]
[1753559446903,0.40179191,118390.0,118380.0,0.44425438]
[1753559447340,0.40179191,118390.0,118380.0,0.45270175]
[1753559447696,0.41023856,118390.0,118380.0,0.45270175]
[1753559448932,0.57072551,118390.0,118380.0,0.44425438]
[1753559453056,0.39334568,118390.0,118380.0,0.45270175]
[1753559453276,0.39334568,118390.0,118380.0,0.46114905]
[1753559454971,0.02533953,118390.0,118380.0,0.46114905]
[1753559455178,0.39334568,118390.0,118380.0,0.45270175]
[1753559456110,0.39334568,118390.0,118380.0,0.46114905]
[1753559457618,0.39334568,118390.0,118380.0,0.45270175]
[1753559458038,0.39334568,118390.0,118380.0,0.46114905]
[1753559458473,0.39334568,118390.0,118380.0,0.45270175]
[1753559458862,0.39334568,118390.0,118380.0,0.46114905]
[1753559459008,0.39334568,118390.0,118380.0,0.45270175]
[1753559459413,0.56227886,118390.0,118380.0,0.45270175]
[1753559460455,0.19427271,118390.0,118380.0,0.45270175]
[1753559460657,0.56227886,118390.0,118380.0,0.45270175]
[1753559461459,0.56227886,118390.0,118380.0,0.44425438]
[1753559461656,0.56227886,118390.0,118380.0,0.45270175]
[1753559462541,0.56227886,118390.0,118380.0,0.44425438]
[1753559463299,0.56227886,118390.0,118380.0,0.45270175]
[1753559465763,0.19427271,118390.0,118380.0,0.45270175]
[1753559465991,0.56227886,118390.0,118380.0,0.45270175]
[1753559466572,0.55383242,118390.0,118380.0,0.45270175]
[1753559467363,0.55383242,118390.0,118380.0,0.46114905]
[1753559467805,0.19415478,118390.0,118380.0,0.46114905]
[1753559468124,0.56216093,118390.0,118380.0,0.46114905]
[1753559469014,0.56216093,118390.0,118380.0,0.45270175]
[1753559469889,0.19415478,118390.0,118380.0,0.45270175]
[1753559470090,0.56216093,118390.0,118380.0,0.45270175]
[1753559470726,0.56216093,118390.0,118380.0,0.46114905]
[1753559471160,0.56216093,118390.0,118380.0,0.45270175]
[1753559472064,0.56216093,118390.0,118380.0,0.46114905]
[1753559472479,0.56216093,118390.0,118380.0,0.45270175]
[1753559472878,0.56216093,118390.0,118380.0,0.46114905]
[1753559473093,0.19415478,118390.0,118380.0,0.46959628]
[1753559473294,0.56216093,118390.0,118380.0,0.46114905]
[1753559474858,0.56216093,118390.0,118380.0,0.45270175]
[1753559476326,0.56216093,118390.0,118380.0,0.44425438]
[1753559476541,0.56216093,118390.0,118380.0,0.45270175]
[1753559476971,0.56216093,118390.0,118380.0,0.46114905]
[1753559477193,0.56216093,118390.0,118380.0,0.45270175]
[1753559477421,0.56216093,118390.0,118380.0,0.46114905]
[1753559477766,0.56216093,118390.0,118380.0,0.45270175]
[1753559478501,0.56216093,118390.0,118380.0,0.46114905]
[1753559479644,0.56216093,118390.0,118380.0,0.45270175]
[1753559479855,0.56216093,118390.0,118380.0,0.46114905]
[1753559481152,0.56216093,118390.0,118380.0,0.46959628]
[1753559481727,0.56216093,118390.0,118380.0,0.46114905]
[1753559482158,0.56216093,118390.0,118380.0,0.46959628]
[1753559483388,0.56216093,118390.0,118380.0,0.46114905]
[1753559485485,0.56216093,118390.0,118380.0,0.45270175]
[1753559487278,0.56216093,118390.0,118380.0,0.46114905]
[1753559487566,0.56216093,118390.0,118380.0,0.45270175]
[1753559487768,0.56216093,118390.0,118380.0,0.46114905]
[1753559492352,0.56216093,118390.0,118380.0,0.45270175]
[1753559493681,0.56216093,118390.0,118380.0,0.44425438]
[1753559493888,0.56216093,118390.0,118380.0,0.45270175]
[1753559494512,0.56216093,118390.0,118380.0,0.46114905]
[1753559494733,0.56216093,118390.0,118380.0,0.45270175]
[1753559496607,0.56216093,118390.0,118380.0,0.46114905]
[1753559499156,0.37633466,118390.0,118380.0,0.478043]
[1753559499389,0.40167405,118390.0,118380.0,0.46114905]
[1753559499594,0.41012013,118390.0,118380.0,0.46959613]
[1753559499739,0.41012013,118390.0,118380.0,0.4695962]
[1753559499963,0.57905331,118390.0,118380.0,0.4611489]
[1753559500373,0.41012013,118390.0,118380.0,0.4611489]
[1753559500573,0.41012013,118390.0,118380.0,0.46959598]
[1753559500968,0.41012006,118390.0,118380.0,0.4611489]
[1753559501440,0.41012006,118390.0,118380.0,0.46114905]
[1753559501668,0.57905324,118390.0,118380.0,0.46959628]
[1753559502096,0.58749989,118390.0,118380.0,0.46959628]
[1753559502326,0.41856671,118390.0,118380.0,0.46959628]
[1753559502916,0.41856671,118390.0,118380.0,0.47804343]
[1753559503119,0.41012006,118390.0,118380.0,0.47804343]
[1753559503478,0.41012006,118390.0,118380.0,0.48649051]
[1753559503725,0.41012006,118390.0,118380.0,0.35873051]
[1753559503955,0.41012006,118390.0,118380.0,0.48633051]
[1753559504423,0.40167348,118390.0,118380.0,0.48633051]
[1753559504623,0.41011999,118390.0,118380.0,0.48633051]
[1753559505344,0.01677459,118390.0,118380.0,0.48633051]
[1753559505591,0.00844608,118390.0,118380.0,0.56243858]
[1753559505836,0.01689231,118390.0,118380.0,0.56243858]
[1753559506307,0.01689231,118390.0,118380.0,0.43483858]
[1753559506609,0.01689223,118390.0,118380.0,0.56247858]
[1753559506823,0.00844608,118390.0,118380.0,0.56247858]
[1753559507248,0.01689223,118390.0,118380.0,0.56247858]
[1753559508279,0.01689223,118390.0,118380.0,0.48637001]
[1753559508491,0.00844601,118390.0,118380.0,0.84592843]
[1753559510204,0.01689216,118390.0,118380.0,0.84592843]
[1753559511051,0.00844601,118390.0,118380.0,0.84588843]
[1753559511270,0.01689209,118390.0,118380.0,0.84588843]
[1753559512419,0.02533832,118390.0,118380.0,0.84588843]
[1753559512656,0.01689209,118390.0,118380.0,0.84588843]
[1753559512871,0.02533824,118390.0,118380.0,0.84588843]
[1753559513707,0.03378454,118390.0,118380.0,0.83744163]
[1753559514232,0.03378454,118390.0,118380.0,0.46943548]
[1753559514770,0.03378454,118390.0,118380.0,0.83744163]
[1753559517179,0.02533824,118390.0,118380.0,0.83744163]
[1753559517395,0.03378454,118390.0,118380.0,0.46943548]
[1753559517615,0.03378454,118390.0,118380.0,0.83744163]
[1753559518260,0.02533824,118390.0,118380.0,0.83744163]
[1753559519203,0.03378454,118390.0,118380.0,0.46943548]
[1753559519636,0.03378454,118390.0,118380.0,0.46098861]
[1753559519864,0.04223098,118390.0,118380.0,0.46943555]
[1753559520089,0.03378454,118390.0,118380.0,0.47788242]
[1753559520700,0.04223098,118390.0,118380.0,0.46943562]
[1753559520930,0.04223098,118390.0,118380.0,0.46098861]
[1753559521114,0.04223098,118390.0,118380.0,0.46943562]
[1753559521519,0.04223098,118390.0,118380.0,0.47788256]
[1753559521730,0.04223098,118390.0,118380.0,0.46943562]
[1753559521897,0.03378454,118390.0,118380.0,0.47788256]
[1753559522123,0.03378454,118390.0,118380.0,0.48632943]
[1753559522319,0.03378454,118390.0,118380.0,0.47788256]
[1753559522519,0.03378454,118390.0,118380.0,0.48632943]
[1753559523053,0.04223098,118390.0,118380.0,0.47788256]
[1753559523252,0.03378454,118390.0,118380.0,0.48632943]
[1753559528872,0.03378447,118390.0,118380.0,0.48632943]
[1753559530486,0.04223084,118390.0,118380.0,0.48632943]
[1753559530692,0.03378447,118390.0,118380.0,0.48632943]
[1753559531904,0.04223084,118390.0,118380.0,0.48632943]
[1753559532334,0.03378447,118390.0,118380.0,0.48632943]
[1753559536935,0.0422807,118390.0,118380.0,0.48632943]
[1753559538191,0.03378447,118390.0,118380.0,0.48632943]
[1753559539304,0.39336242,118400.0,118390.0,0.17737983]
[1753559539475,0.40180829,118400.0,118390.0,0.31263318]
[1753559539613,0.40180829,118400.0,118390.0,0.34699983]
[1753559539819,0.40180829,118400.0,118390.0,0.33855318]
[1753559540267,0.40180829,118400.0,118390.0,0.34699983]
[1753559540725,0.40180829,118400.0,118390.0,0.33855318]
[1753559540951,0.40180829,118400.0,118390.0,0.34699976]
[1753559541132,0.40180829,118400.0,118390.0,0.34699983]
[1753559542335,0.5707272,118400.0,118390.0,0.33855318]
[1753559542553,0.5707272,118400.0,118390.0,0.34699983]
[1753559543186,0.5707272,118400.0,118390.0,0.33855318]
[1753559543406,0.56228162,118400.0,118390.0,0.33855318]
[1753559544975,0.56228162,118400.0,118390.0,0.34064318]
[1753559547038,0.56228162,118400.0,118390.0,0.34908983]
[1753559547713,0.56228162,118400.0,118390.0,0.34064318]
[1753559549319,0.56228162,118400.0,118390.0,0.34908983]
[1753559549968,0.56228162,118400.0,118390.0,0.34064318]
[1753559553170,0.56228162,118400.0,118390.0,0.34908983]
[1753559553530,0.56228162,118400.0,118390.0,0.34064318]
[1753559554757,0.55383582,118400.0,118390.0,0.34064318]
[1753559556584,0.55383582,118400.0,118390.0,0.35594318]
[1753559572384,0.56228148,118400.0,118390.0,0.35594318]
[1753559572617,0.57072678,118400.0,118390.0,0.35594318]
[1753559573218,0.57917272,118400.0,118390.0,0.35594318]
[1753559577408,0.57072728,118400.0,118390.0,0.35594318]
[1753559581638,0.20272113,118400.0,118390.0,0.35594318]
[1753559581892,0.57072728,118400.0,118390.0,0.35594318]
[1753559586088,0.20272113,118400.0,118390.0,0.35594318]
[1753559586310,0.57072728,118400.0,118390.0,0.35594318]
[1753559592493,0.56226239,118400.0,118390.0,0.35594318]
[1753559592703,0.55381673,118400.0,118390.0,0.35594318]
[1753559595186,0.18581058,118400.0,118390.0,0.35594318]
[1753559595402,0.55381673,118400.0,118390.0,0.35594318]
[1753559595622,0.56228839,118400.0,118390.0,0.35594318]
[1753559620892,0.19428224,118400.0,118390.0,0.36438983]
[1753559621113,0.56228839,118400.0,118390.0,0.35594318]
[1753559624824,0.19428224,118400.0,118390.0,0.35594318]
[1753559625026,0.02536333,118400.0,118390.0,0.36438983]
[1753559625248,0.39336948,118400.0,118390.0,0.36438983]
[1753559625631,0.0253629,118400.0,118390.0,0.37283641]
[1753559625834,0.03380884,118400.0,118390.0,0.37283641]
[1753559626040,0.03380877,118400.0,118390.0,0.37283641]
[1753559626243,0.39336905,118400.0,118390.0,0.38128292]
[1753559626455,0.40181492,118400.0,118390.0,0.38128292]
[1753559627090,0.39336905,118400.0,118390.0,0.38128292]
[1753559627317,0.40181492,118400.0,118390.0,0.37283641]
[1753559627797,0.40181492,118400.0,118390.0,0.36438983]
[1753559628664,0.40181492,118400.0,118390.0,0.35594318]
[1753559628821,0.40181492,118400.0,118390.0,0.36438983]
[1753559629053,0.03380877,118400.0,118390.0,0.37283641]
[1753559629472,0.40181485,118400.0,118390.0,0.38128292]
[1753559629674,0.40181485,118400.0,118390.0,0.37283641]
[1753559629875,0.40181485,118400.0,118390.0,0.36438983]
[1753559630098,0.40181485,118400.0,118390.0,0.37283641]
[1753559630372,0.0338087,118400.0,118390.0,0.36438983]
[1753559630536,0.0338087,118400.0,118390.0,0.38128292]
[1753559630737,0.01691696,118400.0,118390.0,0.56713004]
[1753559631013,0.02536233,118400.0,118390.0,0.48265289]
[1753559631207,0.03380791,118400.0,118390.0,0.46575994]
[1753559631409,0.04225357,118400.0,118390.0,0.83376609]
[1753559631776,0.04225357,118400.0,118390.0,0.46575994]
[1753559632361,0.03380784,118400.0,118390.0,0.47420617]
[1753559632576,0.03380784,118400.0,118390.0,0.48265247]
[1753559633415,0.02536233,118400.0,118390.0,0.47420624]
[1753559633676,0.03380777,118400.0,118390.0,0.85065854]
[1753559633913,0.04225343,118400.0,118390.0,0.84221239]
[1753559634172,0.04225343,118400.0,118390.0,0.46575994]
[1753559634364,0.04225343,118400.0,118390.0,0.83376609]
[1753559634544,0.04225343,118400.0,118390.0,0.47420638]
[1753559634902,0.04225343,118400.0,118390.0,0.46576001]
[1753559635099,0.04225343,118400.0,118390.0,0.47420638]
[1753559636123,0.05069923,118400.0,118390.0,0.45731357]
[1753559636538,0.41870538,118400.0,118390.0,0.46576001]
[1753559636751,0.05069923,118400.0,118390.0,0.45731357]
[1753559637262,0.05069923,118400.0,118390.0,0.46576001]
[1753559637756,0.05069923,118400.0,118390.0,0.45731357]
[1753559637961,0.05069923,118400.0,118390.0,0.44886706]
[1753559638174,0.04225343,118400.0,118390.0,0.46576001]
[1753559638293,0.04225343,118400.0,118390.0,0.47420638]
[1753559638493,0.04225343,118400.0,118390.0,0.46576001]
[1753559638707,0.05069923,118400.0,118390.0,0.45731357]
[1753559639500,0.04225393,118400.0,118390.0,0.44954713]
[1753559639705,0.41026008,118400.0,118390.0,0.45799364]
[1753559639937,0.41026008,118400.0,118390.0,0.45799371]
[1753559640143,0.41026008,118400.0,118390.0,0.46644022]
[1753559640348,0.04225393,118400.0,118390.0,0.46644022]
[1753559640576,0.41026008,118400.0,118390.0,0.45799371]
[1753559641002,0.41026008,118400.0,118390.0,0.46644022]
[1753559641157,0.03380813,118400.0,118390.0,0.46644022]
[1753559641379,0.41026008,118400.0,118390.0,0.46644022]
[1753559641953,0.41026008,118400.0,118390.0,0.47488666]
[1753559642153,0.40181428,118400.0,118390.0,0.48333303]
[1753559642371,0.03380813,118400.0,118390.0,0.48333303]
[1753559642748,0.40181428,118400.0,118390.0,0.47488666]
[1753559642965,0.03380813,118400.0,118390.0,0.46644022]
[1753559643176,0.40181428,118400.0,118390.0,0.47488666]
[1753559643393,0.41026001,118400.0,118390.0,0.47488666]
[1753559643609,0.41026001,118400.0,118390.0,0.48333303]
[1753559643877,0.41026001,118400.0,118390.0,0.47488666]
[1753559644069,0.41026001,118400.0,118390.0,0.46644022]
[1753559644354,0.41870588,118400.0,118390.0,0.46644022]
[1753559645465,0.04225386,118400.0,118390.0,0.46644022]
[1753559645691,0.41026001,118400.0,118390.0,0.46644022]
[1753559646110,0.41870581,118400.0,118390.0,0.45799371]
[1753559646318,0.41870581,118400.0,118390.0,0.46644022]
[1753559646521,0.41870581,118400.0,118390.0,0.45799371]
[1753559646996,0.41870581,118400.0,118390.0,0.46644022]
[1753559647592,0.40181428,118400.0,118390.0,0.46644022]
[1753559647839,0.41026008,118400.0,118390.0,0.46644022]
[1753559648533,0.04225393,118400.0,118390.0,0.46644022]
[1753559648758,0.41026008,118400.0,118390.0,0.45799371]
[1753559649153,0.01691703,118400.0,118390.0,0.46644022]
[1753559649421,0.01691703,118400.0,118390.0,0.85133882]
[1753559649422,0.01691696,118400.0,118390.0,0.85133882]
[1753559650043,0.00847166,118400.0,118390.0,0.85133882]
[1753559650251,0.01691696,118400.0,118390.0,0.85133882]
[1753559650505,0.73334148,118410.0,118400.0,0.21016485]
[1753559650900,0.73334148,118410.0,118400.0,0.21216485]
[1753559650902,0.36533533,118410.0,118400.0,0.23032891]
[1753559651115,0.73334148,118410.0,118400.0,0.23032891]
[1753559651328,0.73334148,118410.0,118400.0,0.23877485]
[1753559651547,0.72489582,118410.0,118400.0,0.23032891]
[1753559651751,0.73334098,118410.0,118400.0,0.23877478]
[1753559652473,0.72489582,118410.0,118400.0,0.23877478]
[1753559652744,0.73334091,118410.0,118400.0,0.23877478]
[1753559652960,0.37362052,118410.0,118400.0,0.24722058]
[1753559653387,0.37362052,118410.0,118400.0,0.23032891]
[1753559653601,0.37362052,118410.0,118400.0,0.23877471]
[1753559654063,0.36517543,118410.0,118400.0,0.23877471]
[1753559654269,0.00828576,118410.0,118400.0,0.70814926]
[1753559654476,0.02517522,118410.0,118400.0,0.34014318]
[1753559654703,0.01688946,118410.0,118400.0,0.34014318]
[1753559654912,0.00844466,118410.0,118400.0,0.34014318]
[1753559655431,0.01688946,118410.0,118400.0,0.34014318]
[1753559655656,0.01688946,118410.0,118400.0,0.34858862]
[1753559656085,0.01688946,118410.0,118400.0,0.34014318]
[1753559656292,0.00844466,118410.0,118400.0,0.34858862]
[1753559656498,0.00844466,118410.0,118400.0,0.34014318]
[1753559656704,0.00844466,118410.0,118400.0,0.34858862]
[1753559656894,0.0170857,118410.0,118400.0,0.34858862]
[1753559657145,0.00844466,118410.0,118400.0,0.34858862]
[1753559658466,0.01688946,118410.0,118400.0,0.34858862]
[1753559658696,0.00844466,118410.0,118400.0,0.34858862]
[1753559659115,0.5631574,118420.0,118410.0,0.17734988]
[1753559659116,0.00092745,118420.0,118410.0,0.17734988]
[1753559659345,0.03093431,118420.0,118410.0,0.45774219]
[1753559660246,0.03093431,118420.0,118410.0,0.46618713]
[1753559660473,0.03937882,118420.0,118410.0,0.45774219]
[1753559660923,0.03937882,118420.0,118410.0,0.44929718]
[1753559661156,0.03937882,118420.0,118410.0,0.46618728]
[1753559661579,0.03937882,118420.0,118410.0,0.47463222]
[1753559662257,0.03937882,118420.0,118410.0,0.46618728]
[1753559662492,0.03093431,118420.0,118410.0,0.48307695]
[1753559662741,0.03937875,118420.0,118410.0,0.48307695]
[1753559663189,0.04782326,118420.0,118410.0,0.48307695]
[1753559663424,0.03093431,118420.0,118410.0,0.48307695]
[1753559663638,0.03937854,118420.0,118410.0,0.48307645]
[1753559663860,0.01404592,118420.0,118410.0,0.48307645]
[1753559664059,0.03937832,118420.0,118410.0,0.8510826]
[1753559664681,0.04782269,118420.0,118410.0,0.48307645]
[1753559664882,0.04782333,118420.0,118410.0,0.46618692]
[1753559665089,0.20826978,118420.0,118410.0,0.45774205]
[1753559665294,0.19982562,118420.0,118410.0,0.47463186]
[1753559665436,0.02249072,118420.0,118410.0,0.48307659]
[1753559665650,0.03093516,118420.0,118410.0,0.48307659]
[1753559666089,0.03093516,118420.0,118410.0,0.47463186]
[1753559666294,0.19982555,118420.0,118410.0,0.46618699]
[1753559667721,0.19138125,118420.0,118410.0,0.44929704]
[1753559668280,0.18293688,118420.0,118410.0,0.2719473]
[1753559668499,0.17449244,118420.0,118410.0,0.2719473]
[1753559668909,0.18293631,118420.0,118410.0,0.44929711]
[1753559669124,0.20826921,118420.0,118410.0,0.46618714]
[1753559669330,0.19982534,118420.0,118410.0,0.46618714]
[1753559672116,0.19982534,118420.0,118410.0,0.47463201]
[1753559673487,0.03093495,118420.0,118410.0,0.48307674]
[1753559674160,0.03093495,118420.0,118410.0,0.47463201]
[1753559675111,0.19982534,118420.0,118410.0,0.47463201]
[1753559677271,0.19982534,118420.0,118410.0,0.48307681]
[1753559678177,0.03093495,118420.0,118410.0,0.48307681]
[1753559679489,0.03093495,118420.0,118410.0,0.48307638]
[1753559680288,0.03093495,118420.0,118410.0,0.47463165]
[1753559682557,0.03093495,118420.0,118410.0,0.48307638]
[1753559682765,0.02249044,118420.0,118410.0,0.48307638]
[1753559683040,0.03937925,118420.0,118410.0,0.48307638]
[1753559683277,0.03937925,118420.0,118410.0,0.85108253]
[1753559684057,0.04782376,118420.0,118410.0,0.48307638]
[1753559685235,0.04782376,118420.0,118410.0,0.47463165]
[1753559686278,0.03937967,118420.0,118410.0,0.47463165]
[1753559687765,0.03937967,118420.0,118410.0,0.46618685]
[1753559688209,0.19982576,118420.0,118410.0,0.46618685]
[1753559688417,0.19138139,118420.0,118410.0,0.44929704]
[1753559688601,0.19138139,118420.0,118410.0,0.45774205]
[1753559689179,0.01404628,118420.0,118410.0,0.46618699]
[1753559689380,0.03937918,118420.0,118410.0,0.47463186]
[1753559690456,0.03093467,118420.0,118410.0,0.48307659]
[1753559690863,0.03093467,118420.0,118410.0,0.47463186]
[1753559691063,0.03937911,118420.0,118410.0,0.48307666]
[1753559691223,0.03937911,118420.0,118410.0,0.47463186]
[1753559691422,0.04782362,118420.0,118410.0,0.47463186]
[1753559692106,0.03937911,118420.0,118410.0,0.47463186]
[1753559692251,0.03937911,118420.0,118410.0,0.48307666]
[1753559693566,0.03937911,118420.0,118410.0,0.47463186]
[1753559693990,0.03937911,118420.0,118410.0,0.48307666]
[1753559694199,0.03937911,118420.0,118410.0,0.47463186]
[1753559694624,0.04782362,118420.0,118410.0,0.47463186]
[1753559694833,0.03937911,118420.0,118410.0,0.47463186]
[1753559695049,0.03937911,118420.0,118410.0,0.48307666]
[1753559695263,0.03937911,118420.0,118410.0,0.47463186]
[1753559695472,0.03937911,118420.0,118410.0,0.48307666]
[1753559696227,0.03937911,118420.0,118410.0,0.4830763]
[1753559696444,0.03093467,118420.0,118410.0,0.4830763]
[1753559697728,0.03093467,118420.0,118410.0,0.47463157]
[1753559697972,0.03937911,118420.0,118410.0,0.47463157]
[1753559698179,0.03093467,118420.0,118410.0,0.47463157]
[1753559698370,0.0224903,118420.0,118410.0,0.4830763]
[1753559698610,0.03093467,118420.0,118410.0,0.4830763]
[1753559698796,0.0224903,118420.0,118410.0,0.4830763]
[1753559699607,0.03093467,118420.0,118410.0,0.4830763]
[1753559700290,0.03937911,118420.0,118410.0,0.47463157]
[1753559701140,0.04782362,118420.0,118410.0,0.4577419]
[1753559701344,0.03937911,118420.0,118410.0,0.4577419]
[1753559701542,0.03937911,118420.0,118410.0,0.46618677]
[1753559701755,0.03937911,118420.0,118410.0,0.47463157]
[1753559702110,0.03093467,118420.0,118410.0,0.47463157]
[1753559702565,0.03093467,118420.0,118410.0,0.4830763]
[1753559702777,0.03093467,118420.0,118410.0,0.46618677]
[1753559702987,0.03093467,118420.0,118410.0,0.47463157]
[1753559703949,0.03093467,118420.0,118410.0,0.4830763]
[1753559704136,0.0309346,118420.0,118410.0,0.4830763]
[1753559704392,0.0224903,118420.0,118410.0,0.4830763]
[1753559704606,0.02249023,118420.0,118410.0,0.4830763]
[1753559705052,0.03093446,118420.0,118410.0,0.4830763]
[1753559706137,0.02249023,118420.0,118410.0,0.4830763]
[1753559707315,0.03093446,118420.0,118410.0,0.4830763]
[1753559707794,0.02249023,118420.0,118410.0,0.4830763]
[1753559708901,0.01404607,118420.0,118410.0,0.4830763]
[1753559709324,0.01404599,118420.0,118410.0,0.4830763]
[1753559709780,0.02249001,118420.0,118410.0,0.4830763]
[1753559709985,0.01404599,118420.0,118410.0,0.4830763]
[1753559710838,0.02249008,118420.0,118410.0,0.4830763]
[1753559711092,0.03093431,118420.0,118410.0,0.46618677]
[1753559711280,0.02249008,118420.0,118410.0,0.4746315]
[1753559711517,0.01404599,118420.0,118410.0,0.4746315]
[1753559711823,0.02249001,118420.0,118410.0,0.4746315]
[1753559712037,0.00560205,118420.0,118410.0,0.4746315]
[1753559712254,0.01404599,118420.0,118410.0,0.4746315]
[1753559714244,0.02249008,118420.0,118410.0,0.4746315]
[1753559714974,0.03093424,118420.0,118410.0,0.47463157]
[1753559715188,0.01404599,118420.0,118410.0,0.4830763]
[1753559715392,0.02249001,118420.0,118410.0,0.4830763]
[1753559715620,0.03093417,118420.0,118410.0,0.47463157]
[1753559715798,0.0393784,118420.0,118410.0,0.46618677]
[1753559716093,0.02249001,118420.0,118410.0,0.4830763]
[1753559716536,0.01404599,118420.0,118410.0,0.4830763]
[1753559717162,0.02249008,118420.0,118410.0,0.4830763]
[1753559718141,0.02249008,118420.0,118410.0,0.47463157]
[1753559718342,0.02249008,118420.0,118410.0,0.4830763]
[1753559719180,0.02249008,118420.0,118410.0,0.47463157]
[1753559719615,0.02249008,118420.0,118410.0,0.4830763]
[1753559719823,0.02249008,118420.0,118410.0,0.47463157]
[1753559720005,0.03093431,118420.0,118410.0,0.47463157]
[1753559720422,0.03093431,118420.0,118410.0,0.46618677]
[1753559720912,0.03093424,118420.0,118410.0,0.47463157]
[1753559721080,0.00560205,118420.0,118410.0,0.46618677]
[1753559721313,0.01404592,118420.0,118410.0,0.4746315]
[1753559722815,0.02248994,118420.0,118410.0,0.4746315]
[1753559725387,0.01404592,118420.0,118410.0,0.4746315]
[1753559727341,0.00560205,118420.0,118410.0,0.4746315]
[1753559727567,0.01404592,118420.0,118410.0,0.4746315]
[1753559727963,0.02248986,118420.0,118410.0,0.4746315]
[1753559728470,0.01404592,118420.0,118410.0,0.4746315]
[1753559729803,0.02248986,118420.0,118410.0,0.4746315]
[1753559730429,0.01404592,118420.0,118410.0,0.4746315]
[1753559730575,0.02248994,118420.0,118410.0,0.4746315]
[1753559730775,0.01404592,118420.0,118410.0,0.4746315]
[1753559731205,0.02248994,118420.0,118410.0,0.4746315]
[1753559731414,0.01404592,118420.0,118410.0,0.4746315]
[1753559731815,0.02249001,118420.0,118410.0,0.4746315]
[1753559732019,0.01404592,118420.0,118410.0,0.4746315]
[1753559732397,0.01404599,118420.0,118410.0,0.4746315]
[1753559732613,0.03093452,118420.0,118410.0,0.46618713]
[1753559732835,0.02249015,118420.0,118410.0,0.474632]
[1753559733055,0.03093445,118420.0,118410.0,0.46618713]
[1753559733266,0.02249015,118420.0,118410.0,0.46618713]
[1753559733671,0.02249015,118420.0,118410.0,0.45774219]
[1753559733803,0.03093445,118420.0,118410.0,0.45774219]
[1753559734006,0.02249015,118420.0,118410.0,0.46618713]
[1753559734236,0.02249015,118420.0,118410.0,0.474632]
[1753559734462,0.02249015,118420.0,118410.0,0.4830768]
[1753559734694,0.01404599,118420.0,118410.0,0.474632]
[1753559734901,0.02249015,118420.0,118410.0,0.4830768]
[1753559735145,0.02249015,118420.0,118410.0,0.474632]
[1753559735352,0.02249015,118420.0,118410.0,0.4830768]
[1753559735749,0.02249008,118420.0,118410.0,0.4830768]
[1753559735940,0.02249008,118420.0,118410.0,0.474632]
[1753559736140,0.02249008,118420.0,118410.0,0.47463193]
[1753559736704,0.02249008,118420.0,118410.0,0.48307666]
[1753559736907,0.02249008,118420.0,118410.0,0.47463193]
[1753559738129,0.02227331,118420.0,118410.0,0.47463193]
[1753559738340,0.01886862,118420.0,118410.0,0.47463193]
[1753559738644,0.01886862,118420.0,118410.0,0.48307666]
[1753559739082,0.01886862,118420.0,118410.0,0.474632]
[1753559739430,0.01886862,118420.0,118410.0,0.4830768]
[1753559739854,0.01042453,118420.0,118410.0,0.4830763]
[1753559740072,0.01886862,118420.0,118410.0,0.47463157]
[1753559740641,0.01886862,118420.0,118410.0,0.46618677]
[1753559741032,0.01886862,118420.0,118410.0,0.47463157]
[1753559741350,0.01886862,118420.0,118410.0,0.4830763]
[1753559741662,0.01886862,118420.0,118410.0,0.47463157]
[1753559741866,0.01886862,118420.0,118410.0,0.46618677]
[1753559742083,0.01886862,118420.0,118410.0,0.47463157]
[1753559742336,0.02731278,118420.0,118410.0,0.46618677]
[1753559742522,0.01042453,118420.0,118410.0,0.46618677]
[1753559742745,0.00198059,118420.0,118410.0,0.92711495]
[1753559744716,0.00198059,118420.0,118410.0,0.84263765]
[1753559745148,0.00198059,118420.0,118410.0,0.4746315]
[1753559745355,0.00198059,118420.0,118410.0,0.84263765]
[1753559747157,0.04987949,118430.0,118420.0,0.20813476]
[1753559747423,0.04987949,118430.0,118420.0,0.42049206]
[1753559747626,0.03281078,118430.0,118420.0,0.46604059]
[1753559747826,0.0412543,118430.0,118420.0,0.45759636]
[1753559748043,0.0412543,118430.0,118420.0,0.44915206]
[1753559748258,0.0412543,118430.0,118420.0,0.45759636]
[1753559749036,0.0412543,118430.0,118420.0,0.44915206]
[1753559749260,0.0412543,118430.0,118420.0,0.45759636]
[1753559749456,0.03281071,118430.0,118420.0,0.46604059]
[1753559749755,0.0412543,118430.0,118420.0,0.46604059]
[1753559750005,0.0498496,118430.0,118420.0,0.45759636]
[1753559750358,0.03281071,118430.0,118420.0,0.46604059]
[1753559751315,0.04969803,118430.0,118420.0,0.44915206]
[1753559751522,0.0412543,118430.0,118420.0,0.44915206]
[1753559751894,0.04969803,118430.0,118420.0,0.44915206]
[1753559752112,0.04969796,118430.0,118420.0,0.44915206]
[1753559752758,0.05815949,118430.0,118420.0,0.44915206]
[1753559752975,0.03281071,118430.0,118420.0,0.45759636]
[1753559753170,0.02436719,118430.0,118420.0,0.47448461]
[1753559753387,0.02436726,118430.0,118420.0,0.47448461]
[1753559753626,0.02436719,118430.0,118420.0,0.46604052]
[1753559753841,0.01592382,118430.0,118420.0,0.46604052]
[1753559754055,0.02436719,118430.0,118420.0,0.47448461]
[1753559754255,0.02436719,118430.0,118420.0,0.45759636]
[1753559754497,0.03281078,118430.0,118420.0,0.45759636]